Cogmind - Beta 14 @@@ ROGUE MODE // 2024.09.23 @ 20:04:29 Player: Duduxx Result: Destroyed by Y-54 Guardian with Flak Gun Performance ------------- Evolutions (3) 1500 Regions Visited (5) 1000 Robots Destroyed (56) 280 Value Destroyed (1989) 1989 Prototype IDs (4) 80 Alien Tech Used (0) 0 Bonus (200) 200 TOTAL SCORE: 5049 Bonus ------- Entered Garrisons 200 Cogmind --------- Core Integrity 0/700 Matter 236/300 Energy 17/100 System Corruption 17% Temperature Cool (12) Movement Walking (680) Ox8 Location -7/Garrison Parts ------- > --- POWER (2) -------- (None) > --- PROPULSION (4) --- Aluminum Leg > --- UTILITY (5) ------ Improved Heat Sink Coolant Injector Huge Storage Unit > --- WEAPON (2) ------- Particle Gun > --- INVENTORY (25) --- Particle Gun Heavy Flail Peak State ------------ > --- POWER ------------ Light Nuclear Core Improved Deuterium Engine > --- PROPULSION ------- Carbon-fiber Leg Carbon-fiber Leg > --- UTILITY ---------- Advanced Heat Sink Coolant Injector Huge Storage Unit Advanced Targeting Computer Improved Power Shielding > --- WEAPON ----------- Plasma Cannon Plasma Cannon > --- INVENTORY -------- Improved Ion Engine Light Nuclear Core Light Nuclear Core Improved Heat Sink Advanced Beam Cannon Plasma Cannon Rocket Launcher Rocket Launcher Heavy Flail [Rating: 39] Favorites ----------- Power Improved Ion Engine Engine Improved Ion Engine Power Core Light Nuclear Core Propulsion Aluminum Leg Treads Light Treads Leg Aluminum Leg Flight Unit VTOL Module Utility Huge Storage Unit Device Heat Sink Storage Huge Storage Unit Processor Advanced Targeting Computer Protection Utility Shielding Weapon Improved Medium Laser Energy Gun Improved Medium Laser Energy Cannon Particle Cannon Ballistic Gun Light Assault Rifle Launcher Rocket Launcher Build | -11 -10 -9 -8 -7 -7 ------- Run | Yrd Mat Mat Mat Fac Gar Slots Evolved 6 | . . 2 2 2 . Power 1 | . . . 1 . . Propulsion 2 | . . 1 . 1 . Utility 3 | . . 1 1 1 . Weapon . | . . . . . . Parts Attached 87 | 6 2 19 3 9 48 Power 14 | 1 . 2 1 2 8 Engine 5 | 1 . 2 . 1 1 Core 9 | . . . 1 1 7 Reactor . | . . . . . . Propulsion 23 | 2 . 6 1 3 11 Treads 6 | 2 . 3 . 1 . Leg 16 | . . 3 1 2 10 Wheel . | . . . . . . Hover . | . . . . . . Flight 1 | . . . . . 1 Utility 29 | 1 2 6 1 3 16 Device 14 | . 1 3 . 2 8 Storage 8 | 1 1 . . . 6 Processor 2 | . . 1 1 . . Hackware . | . . . . . . Protection 5 | . . 2 . 1 2 Artifact . | . . . . . . Weapon 21 | 2 . 5 . 1 13 Energy Gun 7 | 1 . 4 . . 2 Energy Cannon 6 | . . 1 . 1 4 Ballistic Gun 4 | 1 . . . . 3 Ballistic Cannon . | . . . . . . Launcher 4 | . . . . . 4 Special Weapon . | . . . . . . Impact Weapon . | . . . . . . Slashing Weapon . | . . . . . . Piercing Weapon . | . . . . . . Special Melee Weapon . | . . . . . . Unidentified Prototypes 2 | . . 1 . . 1 Parts Lost 51 | . . 6 1 6 38 Power 10 | . . 1 . . 9 Propulsion 18 | . . 2 . 3 13 Utility 12 | . . 1 1 1 9 Weapon 11 | . . 2 . 2 7 Highest Loss Streak 12 | . . 1 1 3 12 To Critical Strikes 1 | . . . . . 1 Average Slot Usage (%) 90 | . 94 95 96 72 76 Engine 9 | . 14 11 9 7 3 Core 2 | . . . 9 7 8 Treads 11 | . 28 12 18 7 . Leg 15 | . . 17 9 13 15 Device 14 | . 8 14 16 7 21 Storage 9 | . 14 11 9 7 3 Processor 2 | . . 1 7 7 4 Protection 4 | . . 5 . 1 4 Energy Gun 12 | . 14 17 9 1 1 Energy Cannon 3 | . . 1 9 8 8 Ballistic Gun 2 | . 14 2 . . 1 Peak Build Rating 39 | 6 7 18 23 36 39 Average Rating 17 | 4 6 13 21 24 31 On Entrance 14 | . 6 7 16 23 36 Naked Turns . | . . . . . . Heaviest Build 115 | 13 89 100 105 113 115 Greatest Support 45 | 40 40 40 40 45 45 Greatest Overweight (x) 32 | 1 2 8 2 6 32 Average Overweight (x) 2 | . . 2 2 3 1 Largest Inventory Capacity 25 | 8 25 25 25 25 25 Average Capacity 22 | 7 15 25 25 25 14 Most Carried 11 | 2 5 10 8 8 11 Average Carried 6 | . 3 6 6 6 5 Final Capacity 25 | 8 25 25 25 25 25 Final Carried 8 | 2 4 8 7 8 2 Class Distribution -------------------- 50% | Mutant 49% | Scavenger-Mutant Dominant Class ---------------- Mutant | -10/Materials Mutant | -9/Materials Scavenger-Mutant | -8/Materials Scavenger-Mutant | -7/Factory Scavenger-Mutant | -7/Garrison Resources | -11 -10 -9 -8 -7 -7 ----------- Run | Yrd Mat Mat Mat Fac Gar Matter Collected 1110 | 225 59 164 57 130 475 Remotely . | . . . . . . Salvage Created 2156 | . 145 932 57 217 805 Parts 104 | . 9 52 1 8 34 Haulers Intercepted . | . . . . . . Recyclers Shooed 2 | . . 1 . 1 . Parts Field Recycled . | . . . . . . Retrieved Matter . | . . . . . . Parts Self-Destructed . | . . . . . . Prevented . | . . . . . . Kills | -11 -10 -9 -8 -7 -7 ------- Run | Yrd Mat Mat Mat Fac Gar Combat Hostiles Destroyed 51 | . 3 24 1 4 19 Guns 28 | . 3 23 1 . 1 Cannons 15 | . . . . 3 12 AOE 6 | . . . . . 6 Classes Destroyed 9 | . 2 4 1 . 2 Worker 1 | . 1 . . . . Tunneler 1 | . . 1 . . . Watcher 3 | . . 3 . . . Swarmer 14 | . . 10 . . 4 Grunt 22 | . 3 8 . 1 10 Brawler 1 | . . . . . 1 Sentry 10 | . . 6 . 2 2 Hunter 3 | . . . 1 1 1 Programmer 1 | . . . . . 1 Best Kill Streak 7 | . 3 5 1 1 7 Combat Bots Only 7 | . 2 5 1 1 7 Max Kills in Single Turn 3 | . 1 2 1 1 3 Gunslinging 1 | . . 1 . . . Exploded 3 | . . . . . 3 Melee . | . . . . . . Uniques/NPCs Destroyed . | . . . . . . Combat | -11 -10 -9 -8 -7 -7 -------- Run | Yrd Mat Mat Mat Fac Gar Hostile Shots Fired 884 | . 14 150 10 194 516 Missed 302 | . 5 30 3 68 196 Damage Taken 5629 | . 114 1220 102 846 3347 Core 1000 | . 16 283 . 80 621 Absorbed by Shields 572 | . . 156 . 396 20 Redirected to Shielding 74 | . . 6 . 15 53 Ignored by Resistances 173 | . . . . . 173 Core Remaining (%) 80 | 100 93 29 100 . . Volleys Fired 208 | . 14 81 4 43 66 Largest 2 | . 2 2 2 2 2 Hottest 160 | . 60 124 124 148 160 Shots Fired 352 | . 28 160 8 52 104 Gun 240 | . 28 158 4 17 33 Cannon 103 | . . 2 4 35 62 Launcher 9 | . . . . . 9 Special . | . . . . . . Kinetic 85 | . 14 45 . . 26 Thermal 219 | . . 90 8 52 69 Explosive 9 | . . . . . 9 Electromagnetic 39 | . 14 25 . . . Robot Hit Streak 17 | . 8 14 3 9 17 Robot Miss Streak 5 | . 4 5 2 3 3 Penetration Max . | . . . . . . Secondary Targets 1 | . . 1 . . . Max Gunslinging Chain 1 | . . 1 . . . Shots Hit Robots 233 | . 15 105 5 35 73 Core Hits 98 | . 7 42 2 11 36 Critical Kills 4 | . . 2 . . 2 Critical Parts Destroyed . | . . . . . . Critical Strikes 18 | . . 14 . 2 2 Burn 13 | . . 11 . 2 . Meltdown 1 | . . . . . 1 Destroy 3 | . . 2 . . 1 Corrupt 1 | . . 1 . . . Melee Attacks . | . . . . . . Impact . | . . . . . . Slashing . | . . . . . . Piercing . | . . . . . . Sneak Attacks . | . . . . . . Combat Hostiles . | . . . . . . Follow-up Attacks . | . . . . . . Damage Inflicted 4811 | . 165 1571 90 717 2268 Guns 2254 | . 165 1479 48 188 374 Cannons 1767 | . . 21 42 529 1175 Explosions 719 | . . . . . 719 Melee . | . . . . . . Ramming 71 | . . 71 . . . Kinetic 558 | . 73 206 . . 279 Thermal 3170 | . . 1093 90 717 1270 Explosive 719 | . . . . . 719 Electromagnetic 293 | . 92 201 . . . Impact . | . . . . . . Slashing . | . . . . . . Piercing . | . . . . . . Highest Corruption 17 | . . 1 . 1 17 Average Corruption 3 | . . 1 . 1 8 Corruption Purged . | . . . . . . Corruption Blocked . | . . . . . . Effects 45 | . . 20 . 1 24 Message Errors 10 | . . 3 . 1 6 Matter Fused 12 | . . 8 . . 4 Heat Flow Errors 6 | . . 4 . . 2 Energy Discharges 5 | . . 1 . . 4 Parts Rejected 2 | . . 1 . . 1 Data Loss (minor) 3 | . . . . . 3 Data Loss (major) 2 | . . 2 . . . Misfires 1 | . . 1 . . . Alerts 1 | . . . . . 1 Weapon Failures 3 | . . . . . 3 Overload Shots . | . . . . . . Overflow Damage 61 | . . . . 3 58 Projectiles 35 | . . . . 3 32 Explosions 26 | . . . . . 26 Melee . | . . . . . . Knockbacks 1 | . . 1 . . . Impact 1 | . . 1 . . . Kinetic . | . . . . . . Secondary . | . . . . . . Self-Inflicted Damage 74 | . . . . . 74 Shots 4 | . . . . . 4 Rammed 6 | . 1 5 . . . Targets Rammed 10 | . 1 8 . 1 . Kicked 3 | . . 2 . 1 . Crushed 1 | . . 1 . . . Highest Temperature 421 | . 96 314 276 421 199 Average Temperature 98 | . 45 75 142 143 85 Received Heat Transfer 1848 | . 66 444 . 234 1104 Effects 6 | . . 3 . 3 . Shutdowns 1 | . . . . 1 . Energy Bleed 1 | . . . . 1 . Interference 3 | . . 3 . . . Damage (minor) 1 | . . . . 1 . Siege Activations . | . . . . . . Robots Corrupted . | . . . . . . Combat Hostiles . | . . . . . . Parts Fried 2 | . . 2 . . . Impact Corruptions . | . . . . . . Robots Melted 3 | . . 1 . 1 1 Combat Hostiles 2 | . . 1 . 1 . Parts Melted 15 | . . 7 . 2 6 Heat Transferred 7022 | . . 3199 185 1482 2156 Parts Sabotaged . | . . . . . . Parts Stolen . | . . . . . . Parts Stripped . | . . . . . . Power Chain Reactions . | . . . . . . Alert | -11 -10 -9 -8 -7 -7 ------- Run | Yrd Mat Mat Mat Fac Gar Peak Influence 307 | . 85 307 156 120 256 Initial 91 | . . 35 91 70 30 Average 155 | . 59 183 106 63 187 Maximum Alert Level 1 | . . 1 . . 1 Low Security (%) 68 | 100 100 61 100 100 39 Level 1 31 | . . 38 . . 60 Level 2 . | . . . . . . Level 3 . | . . . . . . Level 4 . | . . . . . . Level 5 . | . . . . . . High Security . | . . . . . . Max Security . | . . . . . . Squads Dispatched 5 | . 2 1 . 2 . Investigation . | . . . . . . Extermination 1 | . . . . 1 . Reinforcement 4 | . 2 1 . 1 . Assault . | . . . . . . Garrison . | . . . . . . Intercept . | . . . . . . Searches Triggered . | . . . . . . Construction Impeded . | . . . . . . Haulers Reinforced . | . . . . . . Active Scanning Responses . | . . . . . . Cargo Convoy Interrupts . | . . . . . . Stealth | -11 -10 -9 -8 -7 -7 --------- Run | Yrd Mat Mat Mat Fac Gar Distress Signals 2 | . . 2 . . . Communications Jammed . | . . . . . . Distress Signals . | . . . . . . Times Spotted 80 | . 5 42 4 9 20 Peak Tracking Total 8 | . 3 7 2 2 8 Tactical Retreats 2 | . . 1 . . 1 Traps | -11 -10 -9 -8 -7 -7 ------- Run | Yrd Mat Mat Mat Fac Gar Traps Triggered 3 | . . 2 . . 1 Indirectly . | . . . . . . Trap Hack Attempts . | . . . . . . Triggered . | . . . . . . Disarmed . | . . . . . . Reprogrammed . | . . . . . . Reused . | . . . . . . Traps Extracted . | . . . . . . Installed . | . . . . . . Triggered . | . . . . . . Machines | -11 -10 -9 -8 -7 -7 ---------- Run | Yrd Mat Mat Mat Fac Gar Machines Disabled 2 | . . 1 1 . . Max in Single Turn 1 | . . 1 1 . . Machines Repaired . | . . . . . . Machines Dismantled . | . . . . . . Machines Sabotaged . | . . . . . . Overloaded Fab Kills . | . . . . . . Hacking | -11 -10 -9 -8 -7 -7 --------- Run | Yrd Mat Mat Mat Fac Gar Machines Accessed 3 | . . 2 . 1 . Terminals 1 | . . 1 . . . Fabricators . | . . . . . . Repair Stations . | . . . . . . Recycling Units 1 | . . 1 . . . Scanalyzers . | . . . . . . Garrison Access 1 | . . . . 1 . Total Hacks 6 | . . 4 . 2 . Successful 3 | . . 2 . 1 . Failed 3 | . . 2 . 1 . Catastrophic . | . . . . . . Database Lockouts . | . . . . . . Manual 2 | . . 2 . . . Terminals 3 | . . 3 . . . Fabricators . | . . . . . . Repair Stations . | . . . . . . Recycling Units 1 | . . 1 . . . Scanalyzers . | . . . . . . Garrison Access 2 | . . . . 2 . Terminal Hacks 1 | . . 1 . . . Prototype ID Bank 1 | . . 1 . . . Fabricator Hacks . | . . . . . . Repair Station Hacks . | . . . . . . Recycling Unit Hacks 1 | . . 1 . . . Report Inventory 1 | . . 1 . . . Scanalyzer . | . . . . . . Garrison Access Hacks 1 | . . . . 1 . Unlock Access 1 | . . . . 1 . Unauthorized Hacks . | . . . . . . Terminals . | . . . . . . Fabricators . | . . . . . . Repair Stations . | . . . . . . Recycling Units . | . . . . . . Scanalyzers . | . . . . . . Garrison Access . | . . . . . . Data Cores Recovered . | . . . . . . Used . | . . . . . . Hacking Detections 2 | . . 1 . 1 . Full Trace Events . | . . . . . . Feedback Events . | . . . . . . Feedback Blocked . | . . . . . . Robot Schematics Acquired . | . . . . . . Robots Built . | . . . . . . Authchips . | . . . . . . Time . | . . . . . . Total Robot Build Rating . | . . . . . . Part Schematics Acquired . | . . . . . . Parts Built . | . . . . . . Authchips . | . . . . . . Time . | . . . . . . Total Part Build Rating . | . . . . . . Parts Repaired . | . . . . . . Time . | . . . . . . Parts Recycled . | . . . . . . Recycled Matter . | . . . . . . Retrieved Matter . | . . . . . . Retrieved Components . | . . . . . . Parts Scanalyzed . | . . . . . . Part Schematics Acquired . | . . . . . . Parts Damaged . | . . . . . . Bothacking | -11 -10 -9 -8 -7 -7 ------------ Run | Yrd Mat Mat Mat Fac Gar Used RIF Installer . | . . . . . . Robots Hacked . | . . . . . . Non-combat . | . . . . . . Combat . | . . . . . . Robot Hacks Applied . | . . . . . . Relay Couplers Released . | . . . . . . Fabnet Peak Effective % . | . . . . . . Robots Rewired . | . . . . . . Allies Hacked . | . . . . . . Hacks Repelled . | . . . . . . Allies | -11 -10 -9 -8 -7 -7 -------- Run | Yrd Mat Mat Mat Fac Gar Total Allies . | . . . . . . Largest Group . | . . . . . . Highest-Rated Group . | . . . . . . Highest-Rated Ally . | . . . . . . Total Orders . | . . . . . . Ally Attacks . | . . . . . . Total Damage . | . . . . . . Kills . | . . . . . . Allies Corrupted . | . . . . . . Allies Melted . | . . . . . . Intel | -11 -10 -9 -8 -7 -7 ------- Run | Yrd Mat Mat Mat Fac Gar Robot Analysis Total . | . . . . . . Derelict Logs Recovered . | . . . . . . Drone Launches . | . . . . . . Drone Recoveries . | . . . . . . Exploration | -11 -10 -9 -8 -7 -7 ------------- Run | Yrd Mat Mat Mat Fac Gar Turns Passed 5357 | 66 300 3281 368 643 699 Spaces Moved 1554 | 38 121 901 110 149 235 Core 34 | 5 . . . . 29 Treads 811 | 33 121 524 110 23 . Legs 700 | . . 377 . 126 197 Wheels . | . . . . . . Hover . | . . . . . . Flight 9 | . . . . . 9 Fastest Speed 50 | 50 160 260 320 260 100 Average Speed 293 | 148 211 325 320 354 186 Slowest Speed 1650 | 160 320 680 320 540 1650 Overloaded Moves . | . . . . . . Propulsion Burnouts . | . . . . . . Robots Hopped . | . . . . . . Cave-ins Triggered . | . . . . . . Exploration Rate (%) 27 | 4 32 82 15 8 26 Regions Visited 5 Branch Regions . Pre-discovered Areas . | . . . . . . Known Exits Taken 1 | . . . . 1 . Unknown Exits Taken 4 | 1 1 1 1 . . Scrap Searched . | . . . . . . Spaces Dug . | . . . . . . Terrain Destroyed 41 | . . . . . 41 Melee . | . . . . . . Projectile . | . . . . . . AOE 41 | . . . . . 41 Terrain Rammed . | . . . . . . Walls Destroyed . | . . . . . . Machines Disabled . | . . . . . . Actions | -11 -10 -9 -8 -7 -7 --------- Run | Yrd Mat Mat Mat Fac Gar Total 1980 | 45 140 1083 120 206 386 Wait 66 | . . 42 . . 24 Move 1550 | 37 120 900 109 149 235 Hop . | . . . . . . Pick Up 22 | 2 2 12 1 2 3 Fast Attach 49 | 6 1 12 2 6 22 Attach 26 | . . 4 1 1 20 Detach 17 | . . 7 1 . 9 Swap 12 | . 1 3 . 2 6 Drop 17 | . 1 11 2 2 1 Fire 208 | . 14 81 4 43 66 Melee . | . . . . . . Ram . | . . . . . . Kick 3 | . . 2 . 1 . Crush 7 | . 1 6 . . . Escape Stasis . | . . . . . . Rewire 3 | . . 3 . . . Trap . | . . . . . . Miscellaneous . | . . . . . . Route ------- -11/Scrapyard -10/Materials -9/Materials (discovered 3 exits: [*Mat x2] / [*Min]) -8/Materials -7/Factory -7/Garrison History --------- Turn | Location | Event 11 | -11/Scrapyard | Discovered new exit (range 15) 67 | -11/Scrapyard | Entered Materials 303 | -10/Materials | Build established: Mutant 325 | -10/Materials | Discovered new exit (range 8) 367 | -10/Materials | Entered another Materials area 367 | -9/Materials | Evolved 2 slots: Propulsion x1, Utility x1 1528 | -9/Materials | Discovered new exit (range 15) 2360 | -9/Materials | Discovered new exit (range 16) 2467 | -9/Materials | Core integrity fell below 50% 2789 | -9/Materials | Build established: Scavenger-Mutant 3405 | -9/Materials | Discovered new exit (range 15) 3648 | -9/Materials | Entered another Materials area 3648 | -8/Materials | Evolved 2 slots: Power x1, Utility x1 3936 | -8/Materials | Discovered new exit (range 14) 4016 | -8/Materials | Entered Factory 4016 | -7/Factory | Evolved 2 slots: Propulsion x1, Utility x1 4157 | -7/Factory | Lost 3 parts (2n1w) 4659 | -7/Factory | Identified exit to Garrison 4659 | -7/Factory | Entered Garrison 4681 | -7/Garrison | Triggered checkpoint 4891 | -7/Garrison | Lost 3 parts (1n1u1w) 4903 | -7/Garrison | Triggered checkpoint 4945 | -7/Garrison | Core integrity fell below 50% 4956 | -7/Garrison | Destroyed 7 combat bots 4985 | -7/Garrison | Lost 12 parts (4p3n2u3w) 5085 | -7/Garrison | System corruption reached 10% 5147 | -7/Garrison | Lost 7 parts (3p3n1u) 5267 | -7/Garrison | Core integrity fell below 20% 5300 | -7/Garrison | Lost 11 parts (2p4n3u2w) 5358 | -7/Garrison | Destroyed by Y-54 Guardian with Flak Gun Last Messages --------------- 05262_ Lgt. Nuclear Core destroyed. 05264_ Y-54 Guardian destroyed. 05266_ Imp. Light Armor Plating destroyed. 05269_ System corrupted: Matter fused (-8). 05269_ Rocket Launcher destroyed. 05269_ Phase Cannon destroyed. 05288_ Acquired 21 matter. 05295_ Acquired VTOL Module. 05304_ Acquired Particle Gun. 05309_ VTOL Module destroyed. 05318_ Y-54 Guardian suffers critical hit (Destroy). 05318_ Y-54 Guardian destroyed. 05323_ System corrupted: Energy discharge (-19). 05325_ Acquired Aluminum Leg. 05331_ Autogun destroyed. 05334_ Acquired 47 matter. 05338_ LCKVZQXDHZB%C8WASA#TU>SEZ#L:3